bitfinex-derivatives/quotes_SOLF0:USTF0_20250613
["timestamp","ask_amount","ask_price","bid_price","bid_amount"]
[1749792729472,0.0505204,143.89,143.83,35.74]
[1749792729871,8.73179862,143.89,143.83,35.74]
[1749792730080,6.9466,143.86,143.83,35.74]
[1749792730269,0.04528332,143.86,143.83,35.74]
[1749792730783,6.99208332,143.86,143.83,35.74]
[1749792731277,0.04528332,143.86,143.81,35.98]
[1749792731975,0.04528332,143.86,143.78,99.2963335]
[1749792732274,8.69536406,143.85,143.78,35.98]
[1749792732476,6.9491,143.81,143.78,35.98]
[1749792732872,8.74105651,143.83,143.78,35.98]
[1749792733277,0.04569245,143.83,143.78,35.98]
[1749792733981,6.9485,143.82,143.78,42.93]
[1749792735980,0.04569245,143.83,143.78,44.67536406]
[1749792736786,0.04569245,143.83,143.8,6.9488]
[1749792737587,0.04569245,143.83,143.81,6.9487]
[1749792738289,0.04569245,143.83,143.8,8.69536406]
[1749792738886,0.04569245,143.83,143.81,6.9488]
[1749792739187,0.04569245,143.83,143.8,8.69536406]
[1749792739776,0.04569245,143.83,143.8,15.64436406]
[1749792741480,0.04569245,143.83,143.8,6.949]
[1749792741686,6.99349245,143.83,143.8,6.949]
[1749792741889,0.04569245,143.83,143.8,6.949]
[1749792742089,0.04569245,143.83,143.79,8.69536406]
[1749792742794,0.04569245,143.83,143.81,6.9485]
[1749792743492,0.04569245,143.83,143.82,42.9283]
[1749792744197,2.2584,143.91,143.82,35.98]
[1749792744492,2.2584,143.91,143.86,6.946]
[1749792744891,2.2584,143.91,143.84,8.69536406]
[1749792745093,6.98948379,143.89,143.86,0.04405974]
[1749792747796,6.98948379,143.89,143.86,6.99035974]
[1749792748098,0.04428379,143.89,143.86,0.04405974]
[1749792748494,6.9457,143.88,143.86,0.04405974]
[1749792748992,6.98938379,143.89,143.86,6.99035974]
[1749792749193,0.04428379,143.89,143.86,0.04405974]
[1749792749800,0.04428379,143.89,143.86,6.99025974]
[1749792750490,6.98948379,143.89,143.86,6.99025974]
[1749792751098,6.98948379,143.89,143.86,0.04405974]
[1749792751501,0.04428379,143.89,143.86,0.04405974]
[1749792751998,6.9454,143.88,143.86,0.04405974]
[1749792752396,0.04428379,143.89,143.86,0.04405974]
[1749792754101,6.9459,143.87,143.86,0.04405974]
[1749792754598,6.9456,143.88,143.86,0.04405974]
[1749792755101,0.04428379,143.89,143.86,0.04405974]
[1749792755988,6.9454,143.88,143.86,0.04405974]
[1749792756702,6.9454,143.88,143.86,6.99045974]
[1749792757302,6.9454,143.88,143.86,0.04405974]
[1749792758303,6.9454,143.88,143.86,6.99045974]
[1749792758500,6.98938379,143.89,143.86,6.99045974]
[1749792759903,6.9455,143.88,143.86,6.99045974]
[1749792760204,0.04428379,143.89,143.86,0.04405974]
[1749792761101,6.9458,143.88,143.86,0.04405974]
[1749792761403,0.04428379,143.89,143.86,0.04405974]
[1749792761604,6.9457,143.88,143.86,0.04405974]
[1749792761799,0.04428379,143.89,143.86,0.04405974]
[1749792762599,6.9459,143.87,143.86,0.04405974]
[1749792763908,6.9475,143.84,143.82,35.98]
[1749792765009,6.9937245,143.84,143.82,35.98]
[1749792765210,0.0462245,143.84,143.82,42.9282]
[1749792765806,6.9936245,143.84,143.82,42.9282]
[1749792767209,0.0462245,143.84,143.83,12.01632411]
[1749792767799,2.2584,143.91,143.86,6.9462]
[1749792768005,2.2584,143.91,143.86,12.01472411]
[1749792768410,6.9455,143.88,143.86,5.06852411]
[1749792768611,2.2584,143.91,143.86,5.06852411]
[1749792768800,0.04469202,143.9,143.87,0.04785722]
[1749792769005,6.9454,143.89,143.87,0.04785722]
[1749792769912,6.9454,143.88,143.87,0.04785722]
[1749792771708,6.9471,143.85,143.82,42.928]
[1749792771914,6.9471,143.85,143.82,35.98]
[1749792772310,6.9465,143.86,143.83,6.9478]
[1749792772512,6.9465,143.86,143.83,5.06852411]
[1749792772817,0.05054892,143.86,143.84,6.9472]
[1749792773012,0.05054892,143.86,143.83,5.06852411]
[1749792773414,6.99714892,143.86,143.83,12.01612411]
[1749792774118,6.99714892,143.86,143.84,6.9472]
[1749792774618,6.99714892,143.86,143.83,6.9475]
[1749792774819,0.05054892,143.86,143.84,5.06852411]
[1749792775016,0.05054892,143.86,143.85,6.9468]
[1749792775614,0.05054892,143.86,143.82,35.98]
[1749792775824,6.9481,143.83,143.79,41.02852411]
[1749792776114,0.05333586,143.82,143.79,41.02852411]
[1749792776415,7.00173586,143.82,143.79,41.02852411]
[1749792776620,0.05333586,143.82,143.79,35.96]
[1749792776923,5.12185997,143.82,143.76,41.02852411]
[1749792777119,5.12185997,143.82,143.76,35.96]
[1749792777517,5.12185997,143.82,143.76,42.9109]
[1749792777922,6.95,143.79,143.76,42.9109]
[1749792778121,6.99568077,143.79,143.76,42.9109]
[1749792778817,6.99568077,143.79,143.77,6.9507]
[1749792779220,6.99568077,143.79,143.76,42.9109]
[1749792779621,0.04568077,143.79,143.76,35.96]
[1749792779926,0.04568077,143.79,143.77,6.9505]
[1749792781325,0.04568077,143.79,143.76,35.96]
[1749792781620,0.04568077,143.79,143.77,5.06852411]
[1749792781923,0.04568077,143.79,143.78,6.9502]
[1749792783725,2.241,143.85,143.78,5.06852411]
[1749792784023,38.3308,143.9,143.83,5.06852411]
[1749792784217,6.9455,143.88,143.85,5.06852411]
[1749792784420,2.3821,143.89,143.85,5.06852411]
[1749792784620,2.3821,143.89,143.83,5.06852411]
[1749792784925,0.04391476,143.87,143.85,0.04568077]
[1749792785429,6.99021476,143.87,143.85,0.04568077]
[1749792786422,0.04391476,143.87,143.85,0.04568077]
[1749792786626,0.04391476,143.87,143.85,5.11420488]
[1749792787019,0.04391476,143.87,143.86,6.9464]
[1749792787219,0.04391476,143.87,143.86,15.63264003]
[1749792788126,0.04391476,143.87,143.86,51.59264003]
[1749792789428,0.04391476,143.87,143.86,35.96]
[1749792790623,0.04391476,143.87,143.86,42.9064]
[1749792790924,0.04391476,143.87,143.86,35.96]
[1749792791229,0.04391476,143.87,143.85,8.7319208]
[1749792791429,0.04391476,143.87,143.85,0.04568077]
[1749792791731,6.9464,143.86,143.85,0.04568077]
[1749792792120,6.9465,143.86,143.83,35.92]
[1749792793722,6.9469,143.85,143.83,35.92]
[1749792793926,2.26741476,143.87,143.8,35.9]
[1749792794133,10.95365479,143.87,143.8,35.9]
[1749792794431,2.26741476,143.87,143.81,6.9487]
[1749792794831,6.9476,143.84,143.81,6.9487]
[1749792795128,6.99690303,143.84,143.81,6.9487]
[1749792795732,0.04930303,143.84,143.83,8.68624003]
[1749792796124,0.04930303,143.84,143.82,8.68624003]
[1749792796327,0.04930303,143.84,143.83,6.9478]
[1749792801030,35.9,143.89,143.82,8.73554306]
[1749792801031,6.945,143.89,143.82,8.73554306]
[1749792801333,40.4014,143.92,143.85,8.68624003]
[1749792801530,6.9457,143.88,143.84,35.9]
[1749792801734,8.68624003,143.89,143.84,35.9]
[1749792801928,8.68624003,143.89,143.81,44.58624003]
[1749792802129,6.99552685,143.86,143.84,0.04930303]
[1749792802633,6.9469,143.85,143.84,0.04930303]
[1749792802834,0.04892685,143.86,143.84,0.04930303]
[1749792804529,6.99532685,143.86,143.84,0.04930303]
[1749792804930,0.04892685,143.86,143.84,0.04930303]
[1749792805939,6.9469,143.85,143.84,0.04930303]
[1749792806237,0.04892685,143.86,143.84,0.04930303]
[1749792806629,6.99562685,143.86,143.84,0.04930303]
[1749792807135,0.04892685,143.86,143.84,6.99660303]
[1749792808939,6.99532685,143.86,143.84,6.99660303]
[1749792809333,0.04892685,143.86,143.84,6.99660303]
[1749792810539,6.99542685,143.86,143.84,6.99660303]
[1749792810839,6.99542685,143.86,143.84,0.04930303]
[1749792811228,0.04892685,143.86,143.84,0.04930303]
[1749792811429,0.04892685,143.86,143.84,6.99660303]
[1749792811628,0.04892685,143.86,143.84,0.04930303]
[1749792812138,6.99552685,143.86,143.84,0.04930303]
[1749792813843,6.99552685,143.86,143.84,6.99650303]
[1749792814042,0.04892685,143.86,143.84,5.11892211]
[1749792814242,0.04892685,143.86,143.85,6.9468]
[1749792814442,0.04892685,143.86,143.85,42.8468]
[1749792815139,4.5014,143.92,143.85,40.96961908]
[1749792815345,2.275,143.92,143.9,5.06961908]
[1749792815843,9.2185,143.92,143.9,5.06961908]
[1749792816144,2.32851368,143.92,143.9,0.05292547]
[1749792816946,9.27221368,143.92,143.9,0.05292547]
[1749792817438,6.944,143.91,143.9,0.05292547]
[1749792817646,5.06961908,143.91,143.85,40.96961908]
[1749792817843,7.31321908,143.91,143.85,40.96961908]
[1749792818240,7.31321908,143.91,143.85,47.91621908]
[1749792818437,5.06961908,143.89,143.83,5.06961908]
[1749792818641,0.04594285,143.87,143.85,0.04530441]
[1749792819042,6.9466,143.86,143.85,0.04530441]
[1749792819649,0.04594285,143.87,143.85,0.04530441]
[1749792820345,0.04594285,143.87,143.85,6.99190441]
[1749792821541,6.99184285,143.87,143.85,6.99190441]
[1749792821741,0.04594285,143.87,143.86,6.9464]
[1749792822152,0.04594285,143.87,143.86,42.8264]
[1749792822551,6.99184285,143.87,143.86,35.88]
[1749792822844,0.04594285,143.87,143.85,0.04530441]
[1749792823047,6.9464,143.86,143.85,0.04530441]
[1749792824939,6.99214285,143.87,143.85,0.04530441]
[1749792825649,6.9464,143.86,143.85,0.04530441]
[1749792828846,6.9477,143.84,143.81,6.9486]
[1749792829353,2.3614,143.86,143.82,6.9482]
[1749792829549,6.9471,143.85,143.82,6.9482]
[1749792830051,6.99320081,143.85,143.82,6.9482]
[1749792831545,0.04610081,143.85,143.8,44.57301441]
[1749792831750,0.04610081,143.85,143.77,44.57301441]
[1749792832050,14.45072313,143.84,143.77,35.88]
[1749792832256,0.04536077,143.82,143.77,35.88]
[1749792832455,8.73837518,143.82,143.77,35.88]
[1749792832647,0.04536077,143.82,143.77,35.88]
[1749792833157,6.99396077,143.82,143.79,6.9494]
[1749792834751,6.99396077,143.82,143.78,6.95]
[1749792834947,6.949,143.81,143.78,6.95]
[1749792835954,6.99386077,143.82,143.79,6.9495]
[1749792836458,0.04536077,143.82,143.79,6.9495]
[1749792837259,0.04536077,143.82,143.8,6.9493]
[1749792838458,0.04536077,143.82,143.81,6.9488]
[1749792839563,0.04536077,143.82,143.79,8.6991253]
[1749792839564,0.04536077,143.82,143.8,6.9491]
[1749792839760,0.04536077,143.82,143.77,44.5791253]
[1749792840359,0.04536077,143.82,143.79,8.6991253]
[1749792840554,0.04536077,143.82,143.8,6.949]
[1749792840757,0.04536077,143.82,143.77,35.88]
[1749792841157,8.74448607,143.82,143.77,35.88]
[1749792841363,2.3833,143.81,143.77,35.88]
[1749792841567,0.04536077,143.82,143.77,35.88]
[1749792841868,0.04536077,143.82,143.81,6.9488]
[1749792842459,2.3614,143.86,143.84,6.947]
[1749792842664,2.3833,143.89,143.83,8.6991253]
[1749792842883,5.74429169,143.88,143.83,8.6991253]
[1749792843069,9.3285,143.89,143.86,6.946]
[1749792843269,2.3833,143.89,143.83,8.6991253]
[1749792843461,9.3284,143.89,143.85,6.99186077]
[1749792843764,4.5404,143.91,143.85,35.94536077]
[1749792843765,0.05096862,143.87,143.85,35.94536077]
[1749792843966,0.0106641,143.87,143.86,8.6991253]
[1749792844164,0.0106641,143.87,143.86,15.6455253]
[1749792844367,6.9433,143.93,143.86,8.6991253]
[1749792844676,6.9433,143.93,143.88,8.6991253]
[1749792844873,6.9427,143.94,143.9,8.6991253]
[1749792845164,175.47573861,143.95,143.9,8.6991253]
[1749792845368,5.79403654,143.94,143.91,0.05086241]
[1749792845564,0.05270307,143.94,143.91,0.05037066]
[1749792846662,0.05270307,143.94,143.91,8.74949596]
[1749792846969,0.05270307,143.94,143.91,15.69319596]
[1749792847167,0.05270307,143.94,143.91,8.74949596]
[1749792847366,0.05270307,143.94,143.92,6.9435]
[1749792847964,0.05270307,143.94,143.93,15.6421253]
[1749792848164,0.05270307,143.94,143.93,51.5421253]
[1749792850364,2.3292,144.02,143.97,6.9409]
[1749792850560,2.3292,144.02,143.96,8.6991253]
[1749792850771,6.9408,143.98,143.94,6.9421]
[1749792850970,2.3292,144.02,143.94,8.6991253]
[1749792851169,2.3292,144.02,143.96,8.6991253]
[1749792851469,0.05239697,144.0,143.98,0.04477853]
[1749792851873,0.05239697,144.0,143.98,8.74390383]
[1749792852176,0.05239697,144.0,143.99,6.9401]
[1749792852371,0.05239697,144.0,143.98,8.74390383]
[1749792852971,0.05239697,144.0,143.98,0.04477853]
[1749792854783,6.99199697,144.0,143.98,0.04477853]
[1749792854972,0.05239697,144.0,143.98,0.04477853]
[1749792855973,6.99199697,144.0,143.98,0.04477853]
[1749792856380,0.05239697,144.0,143.98,0.04477853]
[1749792857486,0.05239697,144.0,143.98,6.98507853]
[1749792857681,0.05239697,144.0,143.98,8.74390383]
[1749792858181,0.05239697,144.0,143.98,0.04477853]
[1749792860673,0.05239697,144.0,143.98,6.98507853]
[1749792860879,0.05239697,144.0,143.98,0.04477853]
[1749792861178,0.05239697,144.0,143.98,6.98537853]
[1749792863180,0.05239697,144.0,143.99,12.00015736]
[1749792863684,0.05239697,144.0,143.99,5.06005736]
[1749792864985,0.05239697,144.0,143.99,12.00015736]
[1749792866482,0.05239697,144.0,143.98,12.04533589]
[1749792866691,0.05239697,144.0,143.98,0.04477853]
[1749792867388,6.99229697,144.0,143.98,0.04477853]
[1749792867589,0.05239697,144.0,143.98,0.04477853]
[1749792867783,0.05239697,144.0,143.99,5.06005736]
[1749792870088,0.05239697,144.0,143.99,12.00015736]
[1749792870489,0.05239697,144.0,143.98,0.04477853]
[1749792871195,0.05239697,144.0,143.99,12.00015736]
[1749792871997,47.7935305,144.0,143.86,13.8926]
[1749792872287,2.2449,143.99,143.94,5.06113353]
[1749792872493,6.9404,143.99,143.96,5.06113353]
[1749792872791,40.80113353,144.03,143.96,5.06113353]
[1749792872792,43.04603353,144.03,143.96,5.06113353]
[1749792872985,0.05163249,144.01,143.98,0.04498814]
[1749792873182,5.06113353,143.99,143.93,35.74]
[1749792873387,40.80113353,143.99,143.93,35.74]
[1749792873690,40.80113353,143.99,143.9,5.06113353]
[1749792873691,5.06113353,143.97,143.9,35.74]
[1749792873883,35.74,143.99,143.9,35.74]
[1749792874093,5.11311842,143.96,143.93,0.04843792]
[1749792874586,6.9428,143.94,143.93,0.04843792]
[1749792875688,6.9423,143.95,143.93,0.04843792]
[1749792875893,0.05198489,143.96,143.93,0.04843792]
[1749792876394,6.99378489,143.96,143.93,6.99103792]
[1749792877288,0.05198489,143.96,143.93,0.04843792]
[1749792879297,6.9421,143.95,143.93,0.04843792]
[1749792880397,6.9425,143.94,143.93,0.04843792]
[1749792882495,2.24018489,143.96,143.93,0.04843792]
[1749792882793,0.05198489,143.96,143.93,0.04843792]
[1749792882998,0.05198489,143.96,143.95,6.942]
[1749792886799,0.05198489,143.96,143.95,12.00788112]
[1749792890004,4.5272,144.02,143.95,5.06588112]
[1749792890199,35.88,144.05,144.0,5.06588112]
[1749792890404,4.5331,144.07,144.0,5.06588112]
[1749792890605,5.7843532,144.06,143.99,35.88]
[1749792890807,5.06588112,144.04,143.99,35.88]
[1749792891004,8.18816013,144.03,144.0,0.05232269]
[1749792891207,6.9391,144.01,144.0,0.05232269]
[1749792896511,7.46421352,144.03,143.95,40.92040659]
[1749792896706,8.07256731,144.02,143.95,40.92040659]
[1749792896909,5.79822336,144.01,143.95,47.86230659]
[1749792897114,2.2739,144.02,143.95,47.86230659]
[1749792897311,13.12451087,144.01,143.95,35.86]
[1749792897506,13.12451087,144.01,143.9,2.3103]
[1749792897507,6.9406,143.98,143.97,0.04674937]
[1749792897712,5.11318811,143.99,143.92,35.86]
[1749792897906,5.06040659,143.99,143.92,35.86]
[1749792898111,6.9415,143.97,143.93,6.9427]
[1749792898810,0.04962668,143.96,143.93,6.9427]
[1749792899214,0.04962668,143.96,143.92,35.86]
[1749792899410,0.04962668,143.96,143.89,40.94040659]
[1749792899718,6.9435,143.92,143.89,47.88510659]
[1749792900108,6.9435,143.92,143.89,42.8247]
[1749792900414,6.9432,143.93,143.89,42.8247]
[1749792901417,0.05253184,143.94,143.89,35.88]
[1749792901815,0.05253184,143.94,143.89,40.94595277]
[1749792902115,0.05253184,143.94,143.91,5.06595277]
[1749792902519,0.05253184,143.94,143.91,12.00965277]
[1749792903420,0.05253184,143.94,143.91,5.06595277]
[1749792903809,0.05253184,143.94,143.93,6.943]
[1749792905116,0.05253184,143.94,143.93,12.00895277]
[1749792905421,2.2909,144.0,143.98,6.9402]
[1749792905721,12.00475277,144.02,143.98,6.9402]
[1749792906020,5.76124458,144.01,143.98,6.9402]
[1749792906316,12.70064458,144.01,143.98,6.98533383]
[1749792906512,6.98617834,144.01,143.98,6.98533383]
[1749792907113,0.04677834,144.01,143.98,0.04513383]
[1749792907316,10.82850946,144.0,143.93,35.88]
[1749792907516,5.76171659,143.99,143.93,35.88]
[1749792907820,5.06595277,144.02,143.94,5.06595277]
[1749792908022,41.6420707,144.01,143.94,5.06595277]
[1749792908224,12.7020707,144.0,143.96,6.9412]
[1749792908521,0.05277371,143.99,143.96,6.9412]
[1749792908723,0.05277371,143.99,143.97,6.941]
[1749792909321,6.99287371,143.99,143.96,6.9413]
[1749792910321,6.9406,143.98,143.95,6.9418]
[1749792910524,0.05277371,143.99,143.94,5.06595277]
[1749792911122,6.99307371,143.99,143.96,6.9412]
[1749792911619,0.05277371,143.99,143.97,6.941]
[1749792911923,0.05277371,143.99,143.98,5.06595277]
[1749792912319,0.05277371,143.99,143.98,12.00655277]
[1749792912617,183.33658983,144.07,143.98,5.06595277]
[1749792912827,5.76730374,144.06,144.03,6.9378]
[1749792913123,5.76730374,144.05,144.03,6.9378]
[1749792913424,176.89425987,144.07,144.03,6.9378]
[1749792913625,5.81354143,144.06,144.04,0.04760455]
[1749792913923,0.04695994,144.06,144.04,0.04760455]
[1749792914124,5.81423917,144.06,144.04,0.04760455]
[1749792914327,6.9372,144.05,144.04,0.04760455]
[1749792915022,6.98385994,144.06,144.04,0.04760455]
[1749792915525,0.04695994,144.06,144.04,0.04760455]
[1749792915718,5.81316844,144.06,144.04,0.04760455]
[1749792916021,0.04695994,144.06,144.04,0.04760455]
[1749792916323,6.98395994,144.06,144.04,0.04760455]
[1749792916618,0.04695994,144.06,144.04,0.04760455]
[1749792917817,0.04695994,144.06,144.04,6.98510455]
[1749792918133,6.98375994,144.06,144.04,0.04760455]
[1749792918828,6.9372,144.05,144.04,0.04760455]
[1749792920429,0.04695994,144.06,144.04,0.04760455]
[1749792921321,6.98375994,144.06,144.04,0.04760455]
[1749792922929,6.98375994,144.06,143.98,35.74]
[1749792922930,40.85291271,144.06,143.98,35.74]
[1749792923124,5.06595277,144.04,143.98,35.74]
[1749792923322,6.9399,144.0,143.96,6.9412]
[1749792923521,5.06595277,144.04,143.95,40.80595277]
[1749792923717,5.06595277,144.04,143.97,6.9406]
[1749792923932,6.9396,144.01,143.99,0.02474579]
[1749792924326,0.05174985,144.02,143.99,0.02474579]
[1749792924531,6.9396,144.0,143.99,0.02474579]
[1749792926630,5.11770262,144.02,143.99,0.02474579]
[1749792926834,0.05174985,144.02,143.99,0.02474579]
[1749792927227,6.99044985,144.02,143.99,6.96454579]
[1749792928027,0.05174985,144.02,143.99,5.09069856]
[1749792929033,0.05174985,144.02,144.0,6.9392]
[1749792930229,5.11770262,144.02,143.99,0.02474579]
[1749792930625,6.9396,144.0,143.99,0.02474579]
[1749792935832,6.9414,143.97,143.95,35.74]
[1749792936330,6.9418,143.96,143.93,12.00562556]
[1749792936527,40.80272556,144.0,143.93,5.06272556]
[1749792936835,6.98544254,143.98,143.95,6.9418]
[1749792937636,6.9411,143.97,143.94,6.9423]
[1749792938435,6.9411,143.97,143.92,35.74]
[1749792938436,0.04464254,143.98,143.95,5.06272556]
[1749792938936,0.04464254,143.98,143.96,6.9411]
[1749792939738,6.98524254,143.98,143.95,12.00452556]
[1749792939931,0.04464254,143.98,143.95,6.9418]
[1749792940237,6.98544254,143.98,143.95,6.9418]
[1749792940736,0.04464254,143.98,143.96,6.9414]
[1749792941637,6.98524254,143.98,143.95,6.9418]
[1749792941937,0.04464254,143.98,143.93,5.06272556]
[1749792942739,6.98544254,143.98,143.95,6.9417]
[1749792943135,0.04464254,143.98,143.92,35.74]
[1749792943337,5.06272556,143.94,143.85,38.0196]
[1749792943538,5.06272556,143.89,143.82,35.74]
[1749792943740,0.04781035,143.87,143.82,35.74]
[1749792943939,0.04781035,143.87,143.83,5.06272556]
[1749792945034,6.944,143.91,143.87,6.9455]
[1749792945339,4.5019,143.93,143.88,5.06272556]
[1749792945742,35.74,143.94,143.88,12.00802556]
[1749792946042,0.04401301,143.92,143.9,0.04781035]
[1749792946343,6.9439,143.91,143.9,0.04781035]
[1749792946840,12.00272556,143.91,143.79,35.74]
[1749792947137,5.06272556,143.84,143.77,2.1836]
[1749792947337,8.70053613,143.83,143.76,35.74]
[1749792947945,0.04849345,143.81,143.76,35.74]
[1749792948442,8.74902958,143.81,143.76,35.74]
[1749792948841,6.9506,143.78,143.74,399.84]
[1749792949031,0.04410818,143.77,143.74,399.84]
[1749792949236,0.04410818,143.77,143.74,406.792]
[1749792950137,0.04410818,143.77,143.74,399.84]
[1749792950541,0.04410818,143.77,143.73,35.74]
[1749792950736,6.99520818,143.77,143.73,35.74]
[1749792950939,0.04410818,143.77,143.73,35.74]
[1749792951839,6.9515,143.76,143.73,35.74]
[1749792952348,0.04410818,143.77,143.73,35.74]
[1749792952941,0.04410818,143.77,143.73,44.44435846]
[1749792953633,0.04410818,143.77,143.75,6.9513]
[1749792954348,0.04410818,143.77,143.76,6.9512]
[1749792954548,0.04410818,143.77,143.73,35.74]
[1749792955042,6.9517,143.75,143.73,35.74]
[1749792955346,0.04410818,143.77,143.73,35.74]
[1749792955842,6.9513,143.76,143.73,35.74]
[1749792956940,0.04410818,143.77,143.73,42.6923]
[1749792957249,0.04410818,143.77,143.73,35.74]
[1749792958243,0.04410818,143.77,143.73,44.44435846]
[1749792960847,0.04410818,143.77,143.74,6.9517]
[1749792961052,0.04410818,143.77,143.73,44.44435846]
[1749792961354,0.04410818,143.77,143.75,15.65585846]
[1749792961552,0.04410818,143.77,143.75,8.70435846]
[1749792962546,0.04410818,143.77,143.75,15.65575846]
[1749792963554,0.04410818,143.77,143.76,6.9512]
[1749792963744,0.04410818,143.77,143.75,8.70435846]
[1749792964148,0.04410818,143.77,143.74,6.952]
[1749792964747,0.04410818,143.77,143.75,6.9516]
[1749792964951,0.04410818,143.77,143.75,8.70435846]
[1749792965758,0.04410818,143.77,143.76,6.9512]
[1749792965957,35.78,143.83,143.75,8.70435846]
[1749792966149,35.78,143.83,143.77,8.70435846]
[1749792966658,35.78,143.83,143.75,8.70435846]
[1749792966854,0.05125862,143.8,143.78,0.04410818]
[1749792968457,7.00065862,143.8,143.78,0.04410818]
[1749792969953,0.05125862,143.8,143.78,0.04410818]
[1749792970161,0.05125862,143.8,143.78,6.99420818]
[1749792970659,0.05125862,143.8,143.78,0.04410818]
[1749792971360,0.05125862,143.8,143.78,6.99410818]
[1749792971662,0.05125862,143.8,143.78,0.04410818]
[1749792971958,0.05125862,143.8,143.78,6.99410818]
[1749792972160,0.05125862,143.8,143.78,0.04410818]
[1749792972954,7.00075862,143.8,143.78,0.04410818]
[1749792973355,0.05125862,143.8,143.78,0.04410818]
[1749792974057,7.00075862,143.8,143.78,0.04410818]
[1749792974263,0.05125862,143.8,143.78,0.04410818]
[1749792974560,6.9497,143.79,143.78,0.04410818]
[1749792977558,0.05125862,143.8,143.78,0.04410818]
[1749792977764,2.239,143.88,143.84,6.9473]
[1749792978061,6.9462,143.87,143.84,12.02206146]
[1749792978658,6.9464,143.86,143.84,12.07072053]
[1749792978864,6.9464,143.86,143.84,0.04865907]
[1749792980373,6.9468,143.85,143.84,0.04865907]
[1749792983871,0.04506198,143.87,143.79,2.4038]
[1749792983872,6.9484,143.82,143.79,44.51119919]
[1749792984171,35.82,143.86,143.79,35.82]
[1749792984369,5.73174042,143.85,143.79,35.82]
[1749792984568,10.30624042,143.85,143.79,35.82]
[1749792984773,4.5745,143.85,143.79,44.51119919]
[1749792985070,0.0497822,143.83,143.81,0.04670773]
[1749792985980,6.9978822,143.83,143.81,0.04670773]
[1749792987065,0.0497822,143.83,143.81,6.99550773]
[1749792987572,0.0497822,143.83,143.81,6.99530773]
[1749792989269,6.9975822,143.83,143.81,0.04670773]
[1749792995467,6.9483,143.82,143.81,0.04670773]
[1749792995668,0.0497822,143.83,143.81,0.04670773]
[1749792996371,6.9978822,143.83,143.81,0.04670773]
[1749792997069,6.9978822,143.83,143.81,6.99540773]
[1749792998582,0.0497822,143.83,143.81,6.99540773]
[1749792998769,0.0497822,143.83,143.81,0.04670773]
[1749792999476,8.69732578,143.82,143.76,35.82]
[1749792999670,41.5782534,143.85,143.73,35.82]
[1749792999671,8.69732578,143.8,143.73,35.82]
[1749792999977,8.69732578,143.8,143.74,6.9519]
[1749793000178,6.951,143.77,143.74,6.9519]
[1749793000370,7.0020438,143.77,143.73,35.82]
[1749793000576,7.0020438,143.77,143.74,6.9521]
[1749793001371,6.9512,143.76,143.73,42.7724]
[1749793001581,6.9512,143.76,143.73,35.82]
[1749793001974,6.9512,143.76,143.73,42.7725]
[1749793002679,8.69732578,143.76,143.69,400.26]
[1749793002974,0.05147459,143.74,143.69,35.78]
[1749793003173,0.05147459,143.74,143.72,6.9528]
[1749793003379,0.05147459,143.74,143.7,5.07858737]
[1749793004279,7.00397459,143.74,143.71,6.9533]
[1749793004670,7.00397459,143.74,143.69,35.78]
[1749793004869,0.05147459,143.74,143.69,35.78]
[1749793005475,6.9529,143.73,143.7,6.9538]
[1749793006176,6.9531,143.72,143.69,47.81298737]
[1749793006882,6.9528,143.73,143.7,6.954]
[1749793007576,6.9528,143.73,143.69,47.81298737]
[1749793008470,6.9528,143.73,143.7,6.954]
[1749793010479,0.05147459,143.74,143.71,5.07989701]
[1749793010683,0.05147459,143.74,143.73,5.07989701]
[1749793010875,4.6888,143.81,143.73,40.87989701]
[1749793011079,4.6888,143.81,143.77,5.07989701]
[1749793011281,2.2883,143.81,143.79,5.07989701]
[1749793011878,0.05094889,143.81,143.79,5.12858845]
[1749793012380,0.05094889,143.81,143.79,0.04869144]
[1749793012583,0.05094889,143.81,143.79,5.12858845]
[1749793013284,35.8,143.86,143.8,8.69388542]
[1749793014181,7.00036781,143.84,143.82,0.04472076]
[1749793014376,0.05276781,143.84,143.82,0.04472076]
[1749793014782,6.9478,143.83,143.82,0.04472076]
[1749793015488,6.949,143.81,143.77,35.8]
[1749793015883,6.949,143.81,143.77,42.7503]
[1749793016488,0.04605095,143.8,143.78,0.05325831]
[1749793018381,0.04605095,143.8,143.78,7.00345831]
[1749793019287,0.04605095,143.8,143.78,0.05325831]
[1749793019688,0.04605095,143.8,143.78,7.00315831]